[Event "Titled Tuesday Blitz January 31 Late 2023"]
[White "Golding, Alex"]
[Black "Mikaelyan, Arman"]
[WhiteFideId "427241"]
[BlackFideId "13304852"]
[WhiteElo "2318"]
[BlackElo "2523"]
[Result "0-1"]
[Round "07"]
[TimeControl "180+2"]
[Date "2023.01.31"]
[WhiteClock "0:00:07"]
[BlackClock "0:00:14"]

1. e4 {[%clk 0:03:00]}  a6 {[%clk 0:02:59]} 2. d4 {[%clk 0:02:59]}  b5 {[%clk 0:02:59]} 3. a4 {[%clk 0:02:57]}  Bb7 {[%clk 0:02:54]} 4. axb5 {[%clk 0:02:54]}  axb5 {[%clk 0:02:55]} 5. Rxa8 {[%clk 0:02:52]}  Bxa8 {[%clk 0:02:56]} 6. Bxb5 {[%clk 0:02:44]}  Bxe4 {[%clk 0:02:56]} 7. Nf3 {[%clk 0:02:44]}  Nf6 {[%clk 0:02:56]} 8. O-O {[%clk 0:02:43]}  e6 {[%clk 0:02:56]} 9. Bg5 {[%clk 0:02:36]}  Be7 {[%clk 0:02:56]} 10. Nc3 {[%clk 0:02:30]}  Bb7 {[%clk 0:02:48]} 11. Ne5 {[%clk 0:02:24]}  O-O {[%clk 0:02:47]} 12. Bd3 {[%clk 0:02:19]}  d6 {[%clk 0:02:44]} 13. Nc4 {[%clk 0:02:17]}  Nbd7 {[%clk 0:02:42]} 14. Qd2 {[%clk 0:01:54]}  Qa8 {[%clk 0:02:40]} 15. Ne3 {[%clk 0:01:50]}  h6 {[%clk 0:02:35]} 16. Bh4 {[%clk 0:01:49]}  Rb8 {[%clk 0:02:31]} 17. Ne2 {[%clk 0:01:46]}  Be4 {[%clk 0:02:11]} 18. b3 {[%clk 0:01:32]}  Bxd3 {[%clk 0:01:57]} 19. Qxd3 {[%clk 0:01:32]}  Nf8 {[%clk 0:01:50]} 20. h3 {[%clk 0:00:53]}  Ng6 {[%clk 0:01:49]} 21. Bg3 {[%clk 0:00:53]}  Qa2 {[%clk 0:01:29]} 22. Nc3 {[%clk 0:00:50]}  Qa5 {[%clk 0:01:28]} 23. Nc4 {[%clk 0:00:48]}  Qa6 {[%clk 0:01:24]} 24. Qf3 {[%clk 0:00:33]}  Bf8 {[%clk 0:01:17]} 25. h4 {[%clk 0:00:32]}  Ne7 {[%clk 0:01:15]} 26. Ne3 {[%clk 0:00:30]}  Qa5 {[%clk 0:01:12]} 27. Ne4 {[%clk 0:00:23]}  Nxe4 {[%clk 0:01:11]} 28. Qxe4 {[%clk 0:00:24]}  Qc3 {[%clk 0:01:09]} 29. Rd1 {[%clk 0:00:23]}  Qa5 {[%clk 0:00:54]} 30. d5 {[%clk 0:00:23]}  e5 {[%clk 0:00:53]} 31. Kh2 {[%clk 0:00:20]}  Qc5 {[%clk 0:00:50]} 32. Qd3 {[%clk 0:00:19]}  Ra8 {[%clk 0:00:50]} 33. h5 {[%clk 0:00:19]}  Ra2 {[%clk 0:00:49]} 34. Bh4 {[%clk 0:00:19]}  Nc8 {[%clk 0:00:46]} 35. c3 {[%clk 0:00:19]}  Be7 {[%clk 0:00:45]} 36. Bg3 {[%clk 0:00:15]}  Bg5 {[%clk 0:00:41]} 37. Nf5 {[%clk 0:00:14]}  Ne7 {[%clk 0:00:38]} 38. Nxe7+ {[%clk 0:00:14]}  Bxe7 {[%clk 0:00:39]} 39. b4 {[%clk 0:00:14]}  Qb6 {[%clk 0:00:37]} 40. Qc4 {[%clk 0:00:15]}  Ra3 {[%clk 0:00:28]} 41. Rd2 {[%clk 0:00:14]}  Bg5 {[%clk 0:00:27]} 42. Re2 {[%clk 0:00:14]}  Qa6 {[%clk 0:00:20]} 43. Qg4 {[%clk 0:00:14]}  Qd3 {[%clk 0:00:18]} 44. f4 {[%clk 0:00:14]}  f5 {[%clk 0:00:17]} 45. Qf3 {[%clk 0:00:12]}  Qxf3 {[%clk 0:00:18]} 46. gxf3 {[%clk 0:00:12]}  exf4 {[%clk 0:00:18]} 47. Be1 {[%clk 0:00:12]}  Kf7 {[%clk 0:00:18]} 48. Kg2 {[%clk 0:00:11]}  Bf6 {[%clk 0:00:19]} 49. Rc2 {[%clk 0:00:10]}  Be5 {[%clk 0:00:19]} 50. Bd2 {[%clk 0:00:10]}  Ra1 {[%clk 0:00:19]} 51. Bc1 {[%clk 0:00:11]}  Rb1 {[%clk 0:00:17]} 52. Kf2 {[%clk 0:00:11]}  g6 {[%clk 0:00:17]} 53. hxg6+ {[%clk 0:00:10]}  Kxg6 {[%clk 0:00:17]} 54. Ke2 {[%clk 0:00:11]}  h5 {[%clk 0:00:17]} 55. Kf2 {[%clk 0:00:11]}  Rb3 {[%clk 0:00:16]} 56. Bd2 {[%clk 0:00:11]}  Ra3 {[%clk 0:00:16]} 57. Kg2 {[%clk 0:00:11]}  Ra1 {[%clk 0:00:16]} 58. Bc1 {[%clk 0:00:11]}  Bf6 {[%clk 0:00:14]} 59. Kh3 {[%clk 0:00:11]}  Be5 {[%clk 0:00:14]} 60. Kh4 {[%clk 0:00:11]}  Rb1 {[%clk 0:00:14]} 61. Kh3 {[%clk 0:00:11]}  Rb3 {[%clk 0:00:14]} 62. Bd2 {[%clk 0:00:11]}  Ra3 {[%clk 0:00:15]} 63. Kg2 {[%clk 0:00:12]}  Ra8 {[%clk 0:00:14]} 64. Kh2 {[%clk 0:00:08]}  Kf6 {[%clk 0:00:14]} 65. Kh3 {[%clk 0:00:06]}  Rg8 {[%clk 0:00:14]} 66. Kh2 {[%clk 0:00:06]}  Rg3 {[%clk 0:00:14]} 67. c4 {[%clk 0:00:04]}  Rxf3 {[%clk 0:00:14]} 68. c5 {[%clk 0:00:05]}  Rf2+ {[%clk 0:00:13]} 69. Kg1 {[%clk 0:00:05]}  Re2 {[%clk 0:00:14]} 70. Kf1 {[%clk 0:00:05]}  f3 {[%clk 0:00:14]} 71. c6 {[%clk 0:00:03]}  h4 {[%clk 0:00:13]} 72. b5 {[%clk 0:00:03]}  h3 {[%clk 0:00:13]} 73. Bg5+ {[%clk 0:00:01]}  Kxg5 {[%clk 0:00:13]} 74. Rxe2 {[%clk 0:00:02]}  fxe2+ {[%clk 0:00:14]} 75. Kxe2 {[%clk 0:00:03]}  Bd4 {[%clk 0:00:13]} 76. b6 {[%clk 0:00:04]}  Bxb6 {[%clk 0:00:13]} 77. Kf3 {[%clk 0:00:04]}  f4 {[%clk 0:00:14]} 78. Ke4 {[%clk 0:00:04]}  h2 {[%clk 0:00:14]} 79. Kd3 {[%clk 0:00:05]}  h1=Q {[%clk 0:00:14]} 80. Kc4 {[%clk 0:00:06]}  Qe4+ {[%clk 0:00:14]} 81. Kb5 {[%clk 0:00:07]}  Qxd5+ {[%clk 0:00:14]} 0-1


[Site "https://www.chess.com"]

[Event "Titled Tuesday Blitz January 31 Late 2023"]
[White "Quispe Arteaga, Gabriel"]
[Black "Lizak, Peter"]
[WhiteFideId "32059809"]
[BlackFideId "731595"]
[WhiteElo "2381"]
[BlackElo "2411"]
[Result "0-1"]
[Round "07"]
[TimeControl "180+2"]
[Date "2023.01.31"]
[WhiteClock "0:00:03"]
[BlackClock "0:00:13"]

1. c4 {[%clk 0:03:00]}  Nf6 {[%clk 0:02:56]} 2. g3 {[%clk 0:03:01]}  g6 {[%clk 0:02:55]} 3. Bg2 {[%clk 0:03:01]}  Bg7 {[%clk 0:02:55]} 4. Nc3 {[%clk 0:03:00]}  O-O {[%clk 0:02:55]} 5. e4 {[%clk 0:03:01]}  c5 {[%clk 0:02:45]} 6. Nge2 {[%clk 0:03:01]}  Nc6 {[%clk 0:02:45]} 7. O-O {[%clk 0:03:01]}  Ne8 {[%clk 0:02:45]} 8. d3 {[%clk 0:02:46]}  Nc7 {[%clk 0:02:44]} 9. f4 {[%clk 0:02:39]}  Ne6 {[%clk 0:02:43]} 10. f5 {[%clk 0:02:39]}  Ned4 {[%clk 0:02:43]} 11. Be3 {[%clk 0:02:33]}  d6 {[%clk 0:02:43]} 12. fxg6 {[%clk 0:02:31]}  hxg6 {[%clk 0:02:26]} 13. Qd2 {[%clk 0:02:30]}  Bg4 {[%clk 0:02:22]} 14. Nf4 {[%clk 0:02:24]}  a6 {[%clk 0:01:59]} 15. h3 {[%clk 0:02:22]}  Bd7 {[%clk 0:01:59]} 16. Nfd5 {[%clk 0:02:19]}  b5 {[%clk 0:01:53]} 17. Kh2 {[%clk 0:02:18]}  bxc4 {[%clk 0:01:51]} 18. dxc4 {[%clk 0:02:18]}  Ne5 {[%clk 0:01:51]} 19. b3 {[%clk 0:02:17]}  a5 {[%clk 0:01:20]} 20. Bg5 {[%clk 0:02:09]}  Re8 {[%clk 0:01:05]} 21. Qf2 {[%clk 0:00:31]}  a4 {[%clk 0:01:01]} 22. Nxe7+ {[%clk 0:00:30]}  Rxe7 {[%clk 0:00:51]} 23. Nd5 {[%clk 0:00:30]}  Ndc6 {[%clk 0:00:44]} 24. Rad1 {[%clk 0:00:29]}  Qf8 {[%clk 0:00:31]} 25. Nxe7+ {[%clk 0:00:22]}  Nxe7 {[%clk 0:00:31]} 26. Rxd6 {[%clk 0:00:23]}  N7c6 {[%clk 0:00:21]} 27. Rd5 {[%clk 0:00:12]}  Nd4 {[%clk 0:00:17]} 28. Be3 {[%clk 0:00:10]}  Be6 {[%clk 0:00:16]} 29. Rxd4 {[%clk 0:00:11]}  cxd4 {[%clk 0:00:16]} 30. Bxd4 {[%clk 0:00:11]}  axb3 {[%clk 0:00:15]} 31. axb3 {[%clk 0:00:12]}  Rd8 {[%clk 0:00:15]} 32. Ba1 {[%clk 0:00:11]}  Qd6 {[%clk 0:00:15]} 33. Qe3 {[%clk 0:00:09]}  Nc6 {[%clk 0:00:14]} 34. Bxg7 {[%clk 0:00:09]}  Kxg7 {[%clk 0:00:15]} 35. Qg5 {[%clk 0:00:09]}  Qe5 {[%clk 0:00:11]} 36. Qxe5+ {[%clk 0:00:07]}  Nxe5 {[%clk 0:00:12]} 37. Rc1 {[%clk 0:00:07]}  Rd2 {[%clk 0:00:13]} 38. c5 {[%clk 0:00:05]}  Nf3+ {[%clk 0:00:13]} 39. Kh1 {[%clk 0:00:05]}  Nd4 {[%clk 0:00:12]} 40. c6 {[%clk 0:00:05]}  Ne2 {[%clk 0:00:12]} 41. Rc5 {[%clk 0:00:03]}  Nxg3+ {[%clk 0:00:13]} 42. Kg1 {[%clk 0:00:04]}  Nh5 {[%clk 0:00:13]} 43. c7 {[%clk 0:00:03]}  Nf4 {[%clk 0:00:14]} 44. Bf1 {[%clk 0:00:04]}  Rb2 {[%clk 0:00:11]} 45. c8=Q {[%clk 0:00:03]}  Bxc8 {[%clk 0:00:11]} 46. Rxc8 {[%clk 0:00:03]}  Rxb3 {[%clk 0:00:12]} 47. Kh2 {[%clk 0:00:04]}  Rb2+ {[%clk 0:00:11]} 48. Kg3 {[%clk 0:00:04]}  Nh5+ {[%clk 0:00:11]} 49. Kf3 {[%clk 0:00:05]}  Nf6 {[%clk 0:00:11]} 50. Rc3 {[%clk 0:00:04]}  Rb5 {[%clk 0:00:10]} 51. Re3 {[%clk 0:00:04]}  Rh5 {[%clk 0:00:09]} 52. Bg2 {[%clk 0:00:05]}  Nh7 {[%clk 0:00:09]} 53. Kf2 {[%clk 0:00:05]}  Ng5 {[%clk 0:00:09]} 54. Re2 {[%clk 0:00:06]}  Ne6 {[%clk 0:00:09]} 55. Kg3 {[%clk 0:00:06]}  Ra5 {[%clk 0:00:10]} 56. Bf3 {[%clk 0:00:05]}  Ra3 {[%clk 0:00:10]} 57. Kf2 {[%clk 0:00:05]}  Nd4 {[%clk 0:00:10]} 58. Re3 {[%clk 0:00:05]}  Rxe3 {[%clk 0:00:08]} 59. Kxe3 {[%clk 0:00:06]}  Nc6 {[%clk 0:00:09]} 60. Kf4 {[%clk 0:00:06]}  Kf6 {[%clk 0:00:09]} 61. Be2 {[%clk 0:00:06]}  g5+ {[%clk 0:00:09]} 62. Ke3 {[%clk 0:00:06]}  Ne5 {[%clk 0:00:10]} 63. Bd1 {[%clk 0:00:06]}  Ng6 {[%clk 0:00:10]} 64. Bg4 {[%clk 0:00:06]}  Ke5 {[%clk 0:00:10]} 65. Bh5 {[%clk 0:00:05]}  Kf6 {[%clk 0:00:09]} 66. Bxg6 {[%clk 0:00:05]}  Kxg6 {[%clk 0:00:10]} 67. Kf3 {[%clk 0:00:05]}  Kh5 {[%clk 0:00:10]} 68. Kg3 {[%clk 0:00:06]}  f6 {[%clk 0:00:11]} 69. Kf3 {[%clk 0:00:02]}  Kh4 {[%clk 0:00:11]} 70. Kg2 {[%clk 0:00:03]}  g4 {[%clk 0:00:12]} 71. hxg4 {[%clk 0:00:03]}  Kxg4 {[%clk 0:00:12]} 72. Kf1 {[%clk 0:00:02]}  Kf4 {[%clk 0:00:12]} 73. Kf2 {[%clk 0:00:02]}  Kxe4 {[%clk 0:00:12]} 74. Ke2 {[%clk 0:00:03]}  Kf4 {[%clk 0:00:13]} 75. Kf2 {[%clk 0:00:03]}  f5 {[%clk 0:00:13]} 0-1


[Site "https://www.chess.com"]

[Event "Titled Tuesday Blitz January 31 Late 2023"]
[White "Oganian, Miran"]
[Black "Kim, Sergey"]
[WhiteFideId "4122488"]
[BlackFideId "13700570"]
[WhiteElo "2439"]
[BlackElo "2295"]
[Result "1-0"]
[Round "07"]
[TimeControl "180+2"]
[Date "2023.01.31"]
[WhiteClock "0:01:50"]
[BlackClock "0:01:22"]

1. e4 {[%clk 0:03:00]}  e5 {[%clk 0:02:59]} 2. Nf3 {[%clk 0:03:00]}  Nc6 {[%clk 0:02:59]} 3. Nc3 {[%clk 0:03:01]}  Nf6 {[%clk 0:02:59]} 4. d4 {[%clk 0:03:02]}  exd4 {[%clk 0:02:58]} 5. Nxd4 {[%clk 0:03:03]}  Bb4 {[%clk 0:02:58]} 6. Nxc6 {[%clk 0:03:03]}  bxc6 {[%clk 0:02:58]} 7. Bd3 {[%clk 0:03:04]}  d5 {[%clk 0:02:58]} 8. exd5 {[%clk 0:03:05]}  Qe7+ {[%clk 0:02:59]} 9. Qe2 {[%clk 0:02:54]}  Qxe2+ {[%clk 0:02:58]} 10. Kxe2 {[%clk 0:02:52]}  Nxd5 {[%clk 0:02:57]} 11. Nxd5 {[%clk 0:02:51]}  cxd5 {[%clk 0:02:57]} 12. Rd1 {[%clk 0:02:51]}  c6 {[%clk 0:02:47]} 13. Kf1 {[%clk 0:02:46]}  O-O {[%clk 0:02:42]} 14. c4 {[%clk 0:02:46]}  Be6 {[%clk 0:02:38]} 15. cxd5 {[%clk 0:02:45]}  Bxd5 {[%clk 0:02:37]} 16. Be3 {[%clk 0:02:43]}  Rfe8 {[%clk 0:02:30]} 17. a3 {[%clk 0:02:36]}  Bd6 {[%clk 0:02:26]} 18. Rac1 {[%clk 0:02:34]}  a5 {[%clk 0:02:13]} 19. Bc4 {[%clk 0:02:33]}  Be5 {[%clk 0:02:10]} 20. Bxd5 {[%clk 0:02:32]}  cxd5 {[%clk 0:02:10]} 21. Rc2 {[%clk 0:02:16]}  Reb8 {[%clk 0:01:55]} 22. Rxd5 {[%clk 0:02:10]}  Bxb2 {[%clk 0:01:53]} 23. Bf4 {[%clk 0:02:06]}  Rb3 {[%clk 0:01:46]} 24. Rxa5 {[%clk 0:01:59]}  Rd8 {[%clk 0:01:40]} 25. a4 {[%clk 0:01:55]}  h6 {[%clk 0:01:28]} 26. Rb5 {[%clk 0:01:54]}  Rxb5 {[%clk 0:01:26]} 27. axb5 {[%clk 0:01:55]}  Bd4 {[%clk 0:01:23]} 28. Rd2 {[%clk 0:01:55]}  Bb6 {[%clk 0:01:22]} 29. Rxd8+ {[%clk 0:01:53]}  Bxd8 {[%clk 0:01:23]} 30. Be3 {[%clk 0:01:51]}  Kf8 {[%clk 0:01:22]} 31. b6 {[%clk 0:01:50]}  Ke8 {[%clk 0:01:22]} 32. b7 {[%clk 0:01:50]}  Bc7 {[%clk 0:01:22]} 33. Ba7 {[%clk 0:01:50]} 1-0


[Site "https://www.chess.com"]

[Event "Titled Tuesday Blitz January 31 Late 2023"]
[White "Al-Tarboush, Ward"]
[Black "Stoyanov, Tsvetan"]
[WhiteFideId "7601450"]
[BlackFideId "2917173"]
[WhiteElo "2256"]
[BlackElo "2454"]
[Result "0-1"]
[Round "07"]
[TimeControl "180+2"]
[Date "2023.01.31"]
[WhiteClock "0:00:35"]
[BlackClock "0:00:04"]

1. e4 {[%clk 0:02:59]}  c5 {[%clk 0:03:00]} 2. Nf3 {[%clk 0:02:59]}  d6 {[%clk 0:03:00]} 3. d4 {[%clk 0:02:59]}  cxd4 {[%clk 0:03:01]} 4. Nxd4 {[%clk 0:02:59]}  Nf6 {[%clk 0:03:02]} 5. Nc3 {[%clk 0:02:59]}  a6 {[%clk 0:03:02]} 6. Be2 {[%clk 0:02:59]}  e5 {[%clk 0:03:02]} 7. Nb3 {[%clk 0:02:58]}  Be7 {[%clk 0:03:03]} 8. g4 {[%clk 0:02:58]}  h6 {[%clk 0:02:58]} 9. h4 {[%clk 0:02:58]}  Be6 {[%clk 0:02:57]} 10. Be3 {[%clk 0:02:56]}  d5 {[%clk 0:02:52]} 11. exd5 {[%clk 0:02:53]}  Nxd5 {[%clk 0:02:52]} 12. Nxd5 {[%clk 0:02:49]}  Qxd5 {[%clk 0:02:51]} 13. Bf3 {[%clk 0:02:43]}  e4 {[%clk 0:02:41]} 14. Qxd5 {[%clk 0:02:43]}  Bxd5 {[%clk 0:02:41]} 15. Bg2 {[%clk 0:02:42]}  Nc6 {[%clk 0:02:36]} 16. O-O-O {[%clk 0:02:40]}  Be6 {[%clk 0:02:16]} 17. Bxe4 {[%clk 0:02:36]}  Bxg4 {[%clk 0:02:15]} 18. f3 {[%clk 0:02:37]}  Be6 {[%clk 0:02:15]} 19. Nc5 {[%clk 0:02:37]}  Bxc5 {[%clk 0:02:14]} 20. Bxc5 {[%clk 0:02:38]}  Rc8 {[%clk 0:02:12]} 21. Rhe1 {[%clk 0:02:36]}  h5 {[%clk 0:01:51]} 22. f4 {[%clk 0:02:35]}  g6 {[%clk 0:01:20]} 23. c3 {[%clk 0:02:27]}  Nd8 {[%clk 0:01:18]} 24. Bb4 {[%clk 0:02:23]}  Rc7 {[%clk 0:00:59]} 25. f5 {[%clk 0:02:09]}  gxf5 {[%clk 0:00:56]} 26. Bxf5 {[%clk 0:02:10]}  Rd7 {[%clk 0:00:53]} 27. Ba5 {[%clk 0:02:00]}  Rxd1+ {[%clk 0:00:47]} 28. Kxd1 {[%clk 0:02:01]}  Ke7 {[%clk 0:00:40]} 29. Bb4+ {[%clk 0:01:59]}  Kf6 {[%clk 0:00:38]} 30. Be4 {[%clk 0:01:52]}  Rg8 {[%clk 0:00:34]} 31. c4 {[%clk 0:01:47]}  Rg4 {[%clk 0:00:29]} 32. Bc3+ {[%clk 0:01:40]}  Ke7 {[%clk 0:00:29]} 33. Bb4+ {[%clk 0:01:30]}  Ke8 {[%clk 0:00:29]} 34. Kc1 {[%clk 0:01:19]}  Rxh4 {[%clk 0:00:28]} 35. Bd5 {[%clk 0:01:20]}  Kd7 {[%clk 0:00:25]} 36. a3 {[%clk 0:01:07]}  Nc6 {[%clk 0:00:20]} 37. Bc5 {[%clk 0:01:02]}  Bxd5 {[%clk 0:00:20]} 38. cxd5 {[%clk 0:01:03]}  Rc4+ {[%clk 0:00:19]} 39. Kd2 {[%clk 0:01:02]}  Rxc5 {[%clk 0:00:18]} 40. dxc6+ {[%clk 0:01:02]}  Rxc6 {[%clk 0:00:18]} 41. Rh1 {[%clk 0:01:02]}  Rh6 {[%clk 0:00:18]} 42. Rh4 {[%clk 0:01:02]}  Ke6 {[%clk 0:00:18]} 43. Ke3 {[%clk 0:01:03]}  Kf5 {[%clk 0:00:17]} 44. Kf3 {[%clk 0:01:03]}  Kg5 {[%clk 0:00:18]} 45. Rh1 {[%clk 0:01:03]}  h4 {[%clk 0:00:18]} 46. Rg1+ {[%clk 0:01:03]}  Kf5 {[%clk 0:00:17]} 47. Kg2 {[%clk 0:01:03]}  Rb6 {[%clk 0:00:16]} 48. Rf1+ {[%clk 0:01:03]}  Kg4 {[%clk 0:00:15]} 49. Rf2 {[%clk 0:01:03]}  f5 {[%clk 0:00:15]} 50. Rc2 {[%clk 0:01:02]}  Rb3 {[%clk 0:00:14]} 51. Kh2 {[%clk 0:01:02]}  f4 {[%clk 0:00:14]} 52. Rg2+ {[%clk 0:01:02]}  Rg3 {[%clk 0:00:12]} 53. Rf2 {[%clk 0:01:02]}  h3 {[%clk 0:00:12]} 54. Kh1 {[%clk 0:00:57]}  Rg2 {[%clk 0:00:11]} 55. Rf1 {[%clk 0:00:57]}  Rxb2 {[%clk 0:00:10]} 56. Rg1+ {[%clk 0:00:57]}  Rg2 {[%clk 0:00:10]} 57. Rf1 {[%clk 0:00:57]}  Ra2 {[%clk 0:00:08]} 58. a4 {[%clk 0:00:58]}  Rxa4 {[%clk 0:00:07]} 59. Rg1+ {[%clk 0:00:58]}  Kh4 {[%clk 0:00:08]} 60. Rf1 {[%clk 0:00:58]}  b5 {[%clk 0:00:09]} 61. Rf3 {[%clk 0:00:58]}  Rd4 {[%clk 0:00:08]} 62. Ra3 {[%clk 0:00:57]}  b4 {[%clk 0:00:07]} 63. Rxa6 {[%clk 0:00:57]}  b3 {[%clk 0:00:06]} 64. Rb6 {[%clk 0:00:58]}  Rd1+ {[%clk 0:00:06]} 65. Kh2 {[%clk 0:00:58]}  Rd2+ {[%clk 0:00:06]} 66. Kh1 {[%clk 0:00:57]}  b2 {[%clk 0:00:07]} 67. Rh6+ {[%clk 0:00:54]}  Kg5 {[%clk 0:00:06]} 68. Rb6 {[%clk 0:00:54]}  Rd1+ {[%clk 0:00:06]} 69. Kh2 {[%clk 0:00:54]}  b1=Q {[%clk 0:00:07]} 70. Rb5+ {[%clk 0:00:34]}  Qxb5 {[%clk 0:00:05]} 71. Kxh3 {[%clk 0:00:35]}  Qf1+ {[%clk 0:00:04]} 0-1


[Site "https://www.chess.com"]

[Event "Titled Tuesday Blitz January 31 Late 2023"]
[White "Harshavardhan G B"]
[Black "Khoroshev, Nikita"]
[WhiteFideId "25059009"]
[BlackFideId "14200287"]
[WhiteElo "2408"]
[BlackElo "2336"]
[Result "1-0"]
[Round "07"]
[TimeControl "180+2"]
[Date "2023.01.31"]
[WhiteClock "0:01:39"]
[BlackClock "0:01:10"]

1. d4 {[%clk 0:03:00]}  Nf6 {[%clk 0:02:59]} 2. c4 {[%clk 0:03:00]}  g6 {[%clk 0:02:59]} 3. Nc3 {[%clk 0:03:00]}  Bg7 {[%clk 0:02:59]} 4. e4 {[%clk 0:03:00]}  d6 {[%clk 0:03:00]} 5. Nf3 {[%clk 0:03:00]}  O-O {[%clk 0:02:59]} 6. Be2 {[%clk 0:03:00]}  Na6 {[%clk 0:03:00]} 7. Be3 {[%clk 0:02:58]}  Ng4 {[%clk 0:02:54]} 8. Bg5 {[%clk 0:02:54]}  h6 {[%clk 0:02:54]} 9. Bc1 {[%clk 0:02:53]}  c5 {[%clk 0:02:53]} 10. d5 {[%clk 0:02:52]}  e6 {[%clk 0:02:48]} 11. h3 {[%clk 0:02:52]}  Nf6 {[%clk 0:02:48]} 12. O-O {[%clk 0:02:51]}  exd5 {[%clk 0:02:47]} 13. exd5 {[%clk 0:02:51]}  Bf5 {[%clk 0:02:44]} 14. Be3 {[%clk 0:02:50]}  Re8 {[%clk 0:02:42]} 15. Qd2 {[%clk 0:02:49]}  Kh7 {[%clk 0:02:42]} 16. a3 {[%clk 0:02:46]}  Ne4 {[%clk 0:02:34]} 17. Nxe4 {[%clk 0:02:46]}  Bxe4 {[%clk 0:02:35]} 18. Rae1 {[%clk 0:02:40]}  Qb6 {[%clk 0:02:29]} 19. b4 {[%clk 0:02:37]}  Qd8 {[%clk 0:02:21]} 20. Nh2 {[%clk 0:02:24]}  g5 {[%clk 0:02:09]} 21. b5 {[%clk 0:02:20]}  Nc7 {[%clk 0:02:08]} 22. Bd3 {[%clk 0:02:19]}  Bxd3 {[%clk 0:02:07]} 23. Qxd3+ {[%clk 0:02:20]}  Kg8 {[%clk 0:02:07]} 24. f4 {[%clk 0:02:18]}  Rxe3 {[%clk 0:01:59]} 25. Rxe3 {[%clk 0:02:17]}  Bd4 {[%clk 0:01:59]} 26. Kh1 {[%clk 0:02:15]}  Bxe3 {[%clk 0:01:59]} 27. Qxe3 {[%clk 0:02:16]}  Qe8 {[%clk 0:01:52]} 28. Qg3 {[%clk 0:02:09]}  Qe7 {[%clk 0:01:47]} 29. Ng4 {[%clk 0:02:03]}  Qe2 {[%clk 0:01:20]} 30. Re1 {[%clk 0:01:46]}  gxf4 {[%clk 0:01:20]} 31. Nf6+ {[%clk 0:01:40]}  Kh8 {[%clk 0:01:20]} 32. Qh4 {[%clk 0:01:39]}  Qxe1+ {[%clk 0:01:10]} 33. Qxe1 {[%clk 0:01:39]} 1-0


[Site "https://www.chess.com"]

[Event "Titled Tuesday Blitz January 31 Late 2023"]
[White "Bas Mas, Jose Joaquin"]
[Black "Maximov, Dmitry"]
[WhiteFideId "22219064"]
[BlackFideId "14105659"]
[WhiteElo "2197"]
[BlackElo "2497"]
[Result "0-1"]
[Round "07"]
[TimeControl "180+2"]
[Date "2023.01.31"]
[WhiteClock "0:00:05"]
[BlackClock "0:00:06"]

1. e4 {[%clk 0:03:00]}  c5 {[%clk 0:02:59]} 2. Nc3 {[%clk 0:03:00]}  Nc6 {[%clk 0:02:59]} 3. Bb5 {[%clk 0:02:59]}  Nd4 {[%clk 0:02:59]} 4. Nf3 {[%clk 0:03:00]}  Nxb5 {[%clk 0:02:59]} 5. Nxb5 {[%clk 0:03:00]}  a6 {[%clk 0:02:59]} 6. Nc3 {[%clk 0:02:58]}  e6 {[%clk 0:03:00]} 7. d4 {[%clk 0:02:57]}  cxd4 {[%clk 0:02:59]} 8. Qxd4 {[%clk 0:02:57]}  Ne7 {[%clk 0:02:57]} 9. b3 {[%clk 0:02:51]}  Nc6 {[%clk 0:02:56]} 10. Qd2 {[%clk 0:02:51]}  Be7 {[%clk 0:02:50]} 11. Bb2 {[%clk 0:02:51]}  O-O {[%clk 0:02:50]} 12. h4 {[%clk 0:02:44]}  Bf6 {[%clk 0:02:46]} 13. O-O-O {[%clk 0:02:43]}  Qa5 {[%clk 0:02:42]} 14. Kb1 {[%clk 0:02:40]}  b5 {[%clk 0:02:38]} 15. g4 {[%clk 0:02:26]}  b4 {[%clk 0:02:30]} 16. Na4 {[%clk 0:02:23]}  Bxb2 {[%clk 0:02:29]} 17. Nxb2 {[%clk 0:02:22]}  d5 {[%clk 0:02:23]} 18. exd5 {[%clk 0:01:58]}  exd5 {[%clk 0:02:23]} 19. Nd4 {[%clk 0:01:51]}  Qc5 {[%clk 0:02:04]} 20. Na4 {[%clk 0:01:40]}  Qxd4 {[%clk 0:01:42]} 21. Qxd4 {[%clk 0:01:39]}  Nxd4 {[%clk 0:01:42]} 22. Rxd4 {[%clk 0:01:40]}  Rb8 {[%clk 0:01:43]} 23. f3 {[%clk 0:01:34]}  Be6 {[%clk 0:01:41]} 24. Nc5 {[%clk 0:01:29]}  a5 {[%clk 0:01:40]} 25. Re1 {[%clk 0:01:28]}  Rb6 {[%clk 0:01:38]} 26. Kb2 {[%clk 0:01:13]}  Rc6 {[%clk 0:01:33]} 27. Nd3 {[%clk 0:01:07]}  Rfc8 {[%clk 0:01:31]} 28. Re2 {[%clk 0:01:07]}  Rc3 {[%clk 0:01:26]} 29. Ne1 {[%clk 0:00:46]}  g6 {[%clk 0:01:09]} 30. a3 {[%clk 0:00:34]}  bxa3+ {[%clk 0:01:07]} 31. Kxa3 {[%clk 0:00:35]}  Kg7 {[%clk 0:01:06]} 32. Kb2 {[%clk 0:00:34]}  h6 {[%clk 0:01:02]} 33. Rd3 {[%clk 0:00:34]}  R3c5 {[%clk 0:01:01]} 34. Ng2 {[%clk 0:00:29]}  g5 {[%clk 0:00:54]} 35. hxg5 {[%clk 0:00:26]}  hxg5 {[%clk 0:00:55]} 36. Ne3 {[%clk 0:00:26]}  Kf6 {[%clk 0:00:50]} 37. Red2 {[%clk 0:00:25]}  Ke5 {[%clk 0:00:45]} 38. c3 {[%clk 0:00:20]}  f6 {[%clk 0:00:37]} 39. Nc2 {[%clk 0:00:18]}  Bf7 {[%clk 0:00:32]} 40. Nd4 {[%clk 0:00:18]}  Bg6 {[%clk 0:00:25]} 41. Re3+ {[%clk 0:00:18]}  Kf4 {[%clk 0:00:25]} 42. Re6 {[%clk 0:00:18]}  Rf8 {[%clk 0:00:18]} 43. Ra6 {[%clk 0:00:13]}  Ke3 {[%clk 0:00:17]} 44. Re2+ {[%clk 0:00:13]}  Kd3 {[%clk 0:00:17]} 45. Rc2 {[%clk 0:00:13]}  Re8 {[%clk 0:00:17]} 46. Rd6 {[%clk 0:00:11]}  Re1 {[%clk 0:00:14]} 47. Ne6 {[%clk 0:00:09]}  Rb5 {[%clk 0:00:13]} 48. Nc7 {[%clk 0:00:09]}  Rc5 {[%clk 0:00:13]} 49. Rxd5+ {[%clk 0:00:09]}  Rxd5 {[%clk 0:00:13]} 50. Nxd5 {[%clk 0:00:10]}  f5 {[%clk 0:00:11]} 51. gxf5 {[%clk 0:00:10]}  Bxf5 {[%clk 0:00:12]} 52. c4 {[%clk 0:00:10]}  Kd4 {[%clk 0:00:12]} 53. Rd2+ {[%clk 0:00:10]}  Kc5 {[%clk 0:00:12]} 54. Kc3 {[%clk 0:00:10]}  Rf1 {[%clk 0:00:12]} 55. Ne3 {[%clk 0:00:10]}  Rxf3 {[%clk 0:00:12]} 56. Re2 {[%clk 0:00:10]}  Be4 {[%clk 0:00:11]} 57. Kd2 {[%clk 0:00:10]}  Bc6 {[%clk 0:00:11]} 58. Rh2 {[%clk 0:00:08]}  Kb4 {[%clk 0:00:11]} 59. Rh5 {[%clk 0:00:08]}  Rg3 {[%clk 0:00:12]} 60. Nc2+ {[%clk 0:00:07]}  Kc5 {[%clk 0:00:10]} 61. Kc1 {[%clk 0:00:05]}  Be4 {[%clk 0:00:08]} 62. Na1 {[%clk 0:00:02]}  Kd4 {[%clk 0:00:08]} 63. Kb2 {[%clk 0:00:03]}  Rg2+ {[%clk 0:00:07]} 64. Ka3 {[%clk 0:00:03]}  Rg1 {[%clk 0:00:08]} 65. Kb2 {[%clk 0:00:03]}  g4 {[%clk 0:00:08]} 66. Nc2+ {[%clk 0:00:03]}  Kd3 {[%clk 0:00:06]} 67. Na3 {[%clk 0:00:03]}  Rg2+ {[%clk 0:00:06]} 68. Ka1 {[%clk 0:00:03]}  Kc3 {[%clk 0:00:06]} 69. Nb1+ {[%clk 0:00:03]}  Kxb3 {[%clk 0:00:06]} 70. Rb5+ {[%clk 0:00:04]}  Kxc4 {[%clk 0:00:06]} 71. Na3+ {[%clk 0:00:03]}  Kd4 {[%clk 0:00:05]} 72. Rxa5 {[%clk 0:00:04]}  g3 {[%clk 0:00:04]} 73. Ra4+ {[%clk 0:00:04]}  Ke3 {[%clk 0:00:05]} 74. Nc4+ {[%clk 0:00:05]}  Kf4 {[%clk 0:00:04]} 75. Nd6 {[%clk 0:00:05]}  Re2 {[%clk 0:00:05]} 76. Nxe4 {[%clk 0:00:05]}  Rxe4 {[%clk 0:00:05]} 77. Ra8 {[%clk 0:00:04]}  g2 {[%clk 0:00:05]} 78. Rf8+ {[%clk 0:00:04]}  Kg3 {[%clk 0:00:05]} 79. Rg8+ {[%clk 0:00:05]}  Rg4 {[%clk 0:00:06]} 0-1


[Site "https://www.chess.com"]